Cogmind - Beta 16 @@@ ROGUE MODE // 2026.01.02 @ 13:33:24 Player: PE-P51 Result: Destroyed by 9A-1FY(R) with Subdweller Laser Performance ------------- Evolutions (0) 0 Regions Visited (2) 400 Robots Destroyed (17) 85 Value Destroyed (454) 454 Prototype IDs (2) 40 Alien Tech Used (0) 0 Bonus (0) 0 TOTAL SCORE: 979 Bonus ------- None Cogmind --------- Core Integrity 0/250 Matter 280/300 Energy 100/100 System Corruption 3% Temperature Cool (6) Movement Treading (160) Location -10/Subcaves Parts ------- > --- POWER (1) -------- Subdweller Power Source > --- PROPULSION (2) --- Light Treads Light Treads > --- UTILITY (2) ------ Large Storage Unit Makeshift Kinetic Plating > --- WEAPON (2) ------- Subdweller Machine Gun Heavy Battle Rifle > --- INVENTORY (15) --- Ion Engine Light Ion Engine Light Treads Light Treads Aluminum Leg Large Storage Unit Large Matter Pod (150) Tractor Beam Subdweller Beam Cannon Subdweller Machine Gun Battle Cannon Datajack Makeshift Sword Peak State ------------ > --- POWER ------------ Subdweller Power Source > --- PROPULSION ------- Light Treads Light Treads > --- UTILITY ---------- Large Storage Unit Makeshift Kinetic Plating > --- WEAPON ----------- Subdweller Machine Gun Makeshift Sword > --- INVENTORY -------- Ion Engine Light Ion Engine Light Treads Light Treads Aluminum Leg Large Storage Unit Large Matter Pod Tractor Beam Subdweller Beam Cannon Subdweller Machine Gun Heavy Battle Rifle Battle Cannon Datajack [Rating: 16] Favorites ----------- Power Ion Engine Engine Ion Engine Propulsion Aluminum Leg Treads Light Treads Leg Aluminum Leg Utility Large Storage Unit Device Heat Sink Storage Large Storage Unit Protection Makeshift Kinetic Plating Weapon Small Laser Energy Gun Small Laser Energy Cannon Beam Cannon Ballistic Gun Subdweller Machine Gun Special Weapon Mining Laser Slashing Weapon Makeshift Sword Build | -11 -10 -10 ------- Run | Yrd Mat Sub Slots Evolved . | . . . Power . | . . . Propulsion . | . . . Utility . | . . . Weapon . | . . . Parts Attached 14 | . 4 10 Power 1 | . . 1 Engine 1 | . . 1 Core . | . . . Reactor . | . . . Propulsion 4 | . 1 3 Treads 2 | . . 2 Leg 2 | . 1 1 Wheel . | . . . Hover . | . . . Flight . | . . . Utility 3 | . 2 1 Device 1 | . 1 . Storage 1 | . 1 . Processor . | . . . Hackware . | . . . Protection 1 | . . 1 Artifact . | . . . Weapon 6 | . 1 5 Energy Gun . | . . . Energy Cannon 2 | . 1 1 Ballistic Gun 2 | . . 2 Ballistic Cannon . | . . . Launcher . | . . . Special Weapon 1 | . . 1 Impact Weapon . | . . . Slashing Weapon 1 | . . 1 Piercing Weapon . | . . . Special Melee Weapon . | . . . Unidentified Prototypes . | . . . Parts Lost 5 | . 1 4 Power . | . . . Propulsion 2 | . . 2 Utility 1 | . . 1 Weapon 2 | . 1 1 Highest Loss Streak 3 | . 1 3 To Critical Strikes . | . . . Average Backups 11 | . 9 13 Power 1 | . 1 2 Propulsion 3 | . 3 3 Utility 3 | . 2 3 Weapon 2 | . 1 3 Tool/Special . | . . . Unused Backups 20 | . 6 14 Power 5 | . 2 3 Propulsion 5 | . 3 2 Utility 4 | . . 4 Weapon 5 | . 1 4 Tool/Special 1 | . . 1 Average Slot Usage (%) 97 | . 98 95 Engine 14 | . 14 14 Treads 9 | . . 18 Leg 18 | . 28 9 Device 8 | . 12 5 Storage 14 | . 14 14 Protection 3 | . . 5 Energy Gun 9 | . 17 2 Energy Cannon 8 | . 10 7 Ballistic Gun 8 | . . 16 Peak Build Rating 16 | . 8 16 Average Rating 9 | . 7 12 On Entrance 6 | 6 6 8 Avg Prop Armor Cover (%) . | . . . Naked Turns . | . . . Heaviest Build 40 | 13 33 40 Greatest Support 40 | 20 20 40 Greatest Overweight (x) 1 | . 1 1 Average Overweight (x) . | . . . Largest Inventory Capacity 15 | . 15 15 Average Capacity 14 | . 14 15 Most Carried 15 | . 15 15 Average Carried 11 | . 9 13 Final Capacity 15 | 8 15 15 Final Carried 15 | 6 15 13 Class Distribution -------------------- 100% | Mutant Dominant Class ---------------- Mutant | -10/Materials Mutant | -10/Subcaves Resources | -11 -10 -10 ----------- Run | Yrd Mat Sub Matter Collected 552 | 199 191 162 Remotely . | . . . Salvage Created 462 | . 283 179 Parts 27 | . 21 6 Haulers Intercepted 1 | . 1 . Recyclers Shooed . | . . . Parts Field Recycled . | . . . Retrieved Matter . | . . . Parts Self-Destructed . | . . . Prevented . | . . . Parts Restored . | . . . Kills | -11 -10 -10 ------- Run | Yrd Mat Sub Combat Hostiles Destroyed 13 | . 7 6 Melee 1 | . . 1 Guns 7 | . 6 1 Cannons 5 | . 1 4 Classes Destroyed 7 | . 6 1 Worker 1 | . 1 . Hauler 1 | . 1 . Operator 1 | . 1 . Watcher 1 | . 1 . Swarmer 3 | . 3 . Grunt 4 | . 4 . Subdweller 6 | . . 6 Best Kill Streak 4 | . 4 2 Combat Bots Only 3 | . 3 2 Max Kills in Single Turn 1 | . 1 1 Gunslinging . | . . . Exploded . | . . . Melee 1 | . . 1 Uniques/NPCs Destroyed . | . . . Combat | -11 -10 -10 -------- Run | Yrd Mat Sub Hostile Shots Fired 101 | . 42 59 Missed 26 | . 11 15 Hits 75 | . 31 44 Projectile 75 | . 31 44 Damage Taken 1222 | . 330 892 Core 263 | . 64 199 Absorbed by Shields . | . . . Core Remaining (%) 100 | 100 . . Volleys Fired 78 | . 37 41 Largest 2 | . 2 2 Hottest 160 | . 100 160 Shots Fired 138 | . 69 69 Gun 73 | . 45 28 Cannon 60 | . 24 36 Launcher . | . . . Special 5 | . . 5 Kinetic 24 | . . 24 Thermal 114 | . 69 45 Explosive . | . . . Electromagnetic . | . . . Robot Hit Streak 18 | . 6 18 Robot Miss Streak 7 | . 7 3 Penetration Max . | . . . Secondary Targets . | . . . Shots Hit Robots 86 | . 37 49 Core Hits 28 | . 19 9 Critical Kills . | . . . Critical Parts Destroyed . | . . . Critical Strikes 1 | . . 1 Destroy 1 | . . 1 Melee Attacks 12 | . . 12 Impact . | . . . Slashing 12 | . . 12 Piercing . | . . . Sneak Attacks . | . . . Combat Hostiles . | . . . Follow-up Attacks . | . . . Damage Inflicted 1694 | . 499 1195 Guns 706 | . 313 393 Cannons 680 | . 177 503 Explosions . | . . . Melee 251 | . . 251 Ramming 9 | . 9 . Kinetic 393 | . . 393 Thermal 1041 | . 490 551 Explosive . | . . . Electromagnetic . | . . . Impact . | . . . Slashing 251 | . . 251 Piercing . | . . . Highest Corruption 3 | . 3 3 Average Corruption 2 | . 1 3 Corruption Purged . | . . . Corruption Blocked . | . . . Effects 19 | . 1 18 Message Errors 2 | . . 2 Matter Fused 6 | . . 6 Heat Flow Errors 5 | . 1 4 Energy Discharges 2 | . . 2 Data Loss (minor) 3 | . . 3 Weapon Failures 1 | . . 1 Overload Shots . | . . . Overflow Damage . | . . . Projectiles . | . . . Explosions . | . . . Melee . | . . . Knockbacks . | . . . Impact . | . . . Kinetic . | . . . Secondary . | . . . Self-Inflicted Damage . | . . . Shots . | . . . Rammed . | . . . Targets Rammed 4 | . 4 . Kicked 4 | . 4 . Crushed . | . . . Highest Temperature 240 | . 225 240 Average Temperature 54 | . 50 79 Received Heat Transfer 333 | . 117 216 Siege Activations . | . . . Martial Activations . | . . . Shielding Activations . | . . . Robots Disrupted . | . . . Combat Hostiles . | . . . Robots Corrupted . | . . . Combat Hostiles . | . . . Parts Fried . | . . . Impact Corruptions . | . . . Robots Melted . | . . . Combat Hostiles . | . . . Parts Melted 4 | . 4 . Heat Transferred 2092 | . 1141 951 Parts Sabotaged . | . . . Parts Stolen . | . . . Parts Stripped . | . . . Power Chain Reactions . | . . . Alert | -11 -10 -10 ------- Run | Yrd Mat Sub Maximum Alert Level . | . . . Low Security (%) 100 | . 100 . Level 1 . | . . . Level 2 . | . . . Level 3 . | . . . Level 4 . | . . . Level 5 . | . . . High Security . | . . . Max Security . | . . . Peak Influence 65 | . 65 . Initial . | . . . Average 16 | . 16 . Influence Increases 264 | . 264 . Destroy 0b10 Robot/C 140 | . 140 . Destroy 0b10 Robot/NC 20 | . 20 . Destroy Leader 44 | . 44 . Select Force Hacks 30 | . 30 . Lose Combat Pursuer 30 | . 30 . Influence Decreases 264 | . 262 2 Entered New Map 2 | . . 2 Time Decay 252 | . 252 . Lost Part 10 | . 10 . Squads Dispatched 2 | . 2 . Investigation 1 | . 1 . Extermination . | . . . Reinforcement 1 | . 1 . Assault . | . . . Garrison . | . . . Intercept . | . . . Searches Triggered . | . . . Construction Impeded . | . . . Haulers Reinforced . | . . . Active Scanning Responses . | . . . Cargo Convoy Interrupts . | . . . Stealth | -11 -10 -10 --------- Run | Yrd Mat Sub Distress Signals 2 | . 2 . Communications Jammed . | . . . Distress Signals . | . . . Times Spotted 25 | . 17 8 Peak Tracking Total 5 | . 5 2 Tactical Retreats 2 | . 2 . Traps | -11 -10 -10 ------- Run | Yrd Mat Sub Traps Triggered 3 | . 3 . Indirectly . | . . . Trap Hack Attempts . | . . . Triggered . | . . . Disarmed . | . . . Reprogrammed . | . . . Reused . | . . . Traps Extracted . | . . . Installed . | . . . Triggered . | . . . Machines | -11 -10 -10 ---------- Run | Yrd Mat Sub Machines Disabled . | . . . Max in Single Turn . | . . . Machines Repaired . | . . . Machines Dismantled . | . . . Machines Sabotaged . | . . . Overloaded Fab Kills . | . . . Hacking | -11 -10 -10 --------- Run | Yrd Mat Sub Machines Accessed 4 | . 4 . Terminals 3 | . 3 . Fabricators . | . . . Repair Stations . | . . . Recycling Units 1 | . 1 . Scanalyzers . | . . . Garrison Access . | . . . Total Hacks 7 | . 7 . Successful 4 | . 4 . Failed 3 | . 3 . Catastrophic 3 | . 3 . Database Lockouts . | . . . Manual 4 | . 4 . Terminals 6 | . 6 . Fabricators . | . . . Repair Stations . | . . . Recycling Units 1 | . 1 . Scanalyzers . | . . . Garrison Access . | . . . Terminal Hacks 3 | . 3 . Prototype ID Bank 1 | . 1 . Alert Level 1 | . 1 . Locate Traps 1 | . 1 . Fabricator Hacks . | . . . Repair Station Hacks . | . . . Recycling Unit Hacks . | . . . Scanalyzer . | . . . Garrison Access Hacks . | . . . Unauthorized Hacks 1 | . 1 . Terminals . | . . . Fabricators . | . . . Repair Stations . | . . . Recycling Units 1 | . 1 . Tunnel 1 | . 1 . Scanalyzers . | . . . Garrison Access . | . . . Data Cores Recovered . | . . . Used . | . . . Hacking Detections 3 | . 3 . Full Trace Events 1 | . 1 . Feedback Events . | . . . Feedback Blocked . | . . . Robot Schematics Acquired . | . . . Robots Built . | . . . Authchips . | . . . Time . | . . . Total Robot Build Rating . | . . . Part Schematics Acquired . | . . . Parts Built . | . . . Authchips . | . . . Time . | . . . Total Part Build Rating . | . . . Part Studies Acquired . | . . . Parts Repaired . | . . . Time . | . . . Parts Recycled . | . . . Recycled Matter . | . . . Retrieved Matter . | . . . Retrieved Components . | . . . Parts Scanalyzed . | . . . Part Schematics Acquired . | . . . Parts Damaged . | . . . Bothacking | -11 -10 -10 ------------ Run | Yrd Mat Sub Used RIF Installer . | . . . Robots Hacked . | . . . Non-combat . | . . . Combat . | . . . Robot Hacks Applied . | . . . Relay Couplers Released . | . . . Fabnet Peak Effective % . | . . . Robots Rewired . | . . . Allies Hacked . | . . . Hacks Repelled . | . . . Allies | -11 -10 -10 -------- Run | Yrd Mat Sub Total Allies . | . . . Largest Group . | . . . Highest-Rated Group . | . . . Highest-Rated Ally . | . . . Total Orders . | . . . Ally Attacks . | . . . Total Damage . | . . . Kills . | . . . Allies Corrupted . | . . . Allies Melted . | . . . Intel | -11 -10 -10 ------- Run | Yrd Mat Sub Active Infowar (turns) . | . . . Robot Analysis Total . | . . . Derelict Logs Recovered . | . . . Drone Launches . | . . . Drone Recoveries . | . . . Exploration | -11 -10 -10 ------------- Run | Yrd Mat Sub Turns Passed 1892 | . 918 974 Spaces Moved 879 | 1 398 480 Core . | . . . Treads 354 | . . 354 Legs 525 | 1 398 126 Wheels . | . . . Hover . | . . . Flight . | . . . Fastest Speed 120 | 120 120 160 Average Speed 177 | 120 188 167 Slowest Speed 190 | 120 190 190 Overloaded Moves . | . . . Propulsion Burnouts . | . . . Robots Hopped . | . . . Potential Cave-ins . | . . . Cave-ins Triggered . | . . . Exploration Rate (%) 35 | 2 74 31 Regions Visited 2 Branch Regions 1 Pre-discovered Areas 1 | . 1 . Known Exits Taken . | . . . Unknown Exits Taken 2 | 1 1 . Scrap Searched 8 | . . 8 Spaces Dug 1 | . . 1 Terrain Destroyed 4 | . . 4 Melee 1 | . . 1 Projectile 3 | . . 3 AOE . | . . . Terrain Rammed . | . . . Walls Destroyed . | . . . Machines Disabled . | . . . Actions | -11 -10 -10 --------- Run | Yrd Mat Sub Total 1053 | . 494 559 Wait 41 | . 38 3 Move 877 | . 397 480 Hop . | . . . Pick Up 16 | . 10 6 Fast Attach 5 | . 3 2 Attach 2 | . . 2 Detach 1 | . 1 . Swap 7 | . 1 6 Drop 10 | . 3 7 Fire 78 | . 37 41 Melee 12 | . . 12 Ram . | . . . Kick 4 | . 4 . Crush . | . . . Escape Stasis . | . . . Rewire . | . . . Trap . | . . . Miscellaneous . | . . . Route ------- -11/Scrapyard -10/Materials (discovered 3 exits: [*Mat] / [*Min] / [*Sub]) -10/Subcaves (discovered 1 exit: [*Mat]) History --------- Turn | Location | Event 1 | -11/Scrapyard | Discovered new exit (range 0) 1 | -11/Scrapyard | Entered Materials 315 | -10/Materials | Build established: Mutant 521 | -10/Materials | Discovered new exit (range 16) 649 | -10/Materials | Discovered new exit (range 14) 814 | -10/Materials | Discovered new exit (range 9) 919 | -10/Materials | Entered Subcaves 1084 | -10/Subcaves | Disturbed a concealed Subdweller 1090 | -10/Subcaves | Disturbed a concealed Subdweller 1253 | -10/Subcaves | Core integrity fell below 50% 1297 | -10/Subcaves | Lost 3 parts (2n1u) 1356 | -10/Subcaves | Discovered new exit (range 13) 1358 | -10/Subcaves | Shifting Twisted Machinery released Sub. Monowheel 1363 | -10/Subcaves | Shifting Twisted Machinery released Sub. Monowheel 1463 | -10/Subcaves | Core integrity fell below 20% 1877 | -10/Subcaves | Ambushed by Subdwellers from Twisted Machinery 1893 | -10/Subcaves | Destroyed by 9A-1FY(R) with Subdweller Laser Last Messages --------------- 01472_ Acquired 27 matter. 01475_ Sub. Power Source shoots sparks and powers down. 01476_ Searching scrap... 01476_ Found Sub. Monowheel. 01476_ Found 33 Matter. 01477_ Searching scrap... 01477_ Found Mak. Kinetic Plating. 01477_ Found 70 Matter. 01480_ Acquired Mak. Kinetic Plating. 01482_ Acquired 10 matter. 01507_ System corrupted: Energy discharge (-35). 01576_ OIFSYRA4R52#M> FWXQA>V3